Workbook

Sheet 汇总表
A1: 资产评估汇总表
A2: 评估基准日：2021年01月08日
A4: 被评估单位：盐城大丰天州机械制造有限公司 | D4: 金额单位：人民币元
A5: 编号 | B5: 科目名称 | C5: 评估方法 | D5: 评估价值 | F5: 备注
D6: 原值 | E6: 净值
A7: 1-1 | B7: 房屋建筑物 | C7: 成本法 | D7: =厂房!I12 -> 14,561,726.67 | E7: =厂房!K12 -> 13,105,554.00
A8: 1-2 | B8: 土地使用权 | C8: 比较法 | D8: =土地!J8 -> 3,555,200.00 | E8: =土地!J8 -> 3,555,200.00
A9: 小计 | D9: =D7+D8 -> 18,116,926.67 | E9: =E7+E8 -> 16,660,754.00
A10: 2-1 | B10: 房屋建筑物 | C10: 收益法 | D10: =收益法!I10 -> 16,623,062.00 | E10: =收益法!I10 -> 16,623,062.00 | F10: 包含土地价值
A11: 小计 | D11: =D10 -> 16,623,062.00 | E11: =E10 -> 16,623,062.00
A12: 资产合计 | D12: =(D9+D11)/2 -> 17,369,994.34 | E12: =(E9+E11)/2 -> 16,641,908.00
A13: 减：资产减值准备
A14: 资产合计 | D14: =D12 -> 17,369,994.34 | E14: =E12 -> 16,641,908.00
F15: 评估机构：江苏三师土地房地产资产评估测绘咨询有限公司

Sheet 厂房
A1: 房屋建筑物评估明细表
A2: 评估基准日：2021年01月08日
L3: 1-1
A4: 被评估单位：盐城大丰天州机械制造有限公司 | L4: 金额单位：人民币元
A5: 序号 | B5: 建筑物名称 | C5: 结构 | D5: 建成 年月 | E5: 层次/层数 | F5: 计量单位 | G5: 建筑面积（m2) | H5: 评估单价(元/m2) | I5: 评估价值 | L5: 备注
I6: 原值 | J6: 成新率% | K6: 净值
A7: 1 | B7: 1#厂房 | C7: 钢混 | D7: 2018 | E7: 1-1 | F7: m2 | G7: 3,893.40 | H7: 1155 | I7: =ROUND(K7/J7,2) -> 4,996,530.00 | J7: 90% | K7: =ROUND(H7*G7,2) -> 4,496,877.00 | L7: 局部二层
A8: 2 | B8: 2#厂房 | C8: 钢混 | D8: 2018 | E8: 1-1 | F8: m2 | G8: 3,893.40 | H8: 1155 | I8: =ROUND(K8/J8,2) -> 4,996,530.00 | J8: 90% | K8: =ROUND(H8*G8,2) -> 4,496,877.00 | L8: 局部二层
A9: 3 | B9: 3#厂房 | C9: 钢混 | D9: 2018 | E9: 1-1 | F9: m2 | G9: 3,560.00 | H9: 1155 | I9: =ROUND(K9/J9,2) -> 4,568,666.67 | J9: 90% | K9: =ROUND(H9*G9,2) -> 4,111,800.00 | L9: 局部二层
A10: 合 计 | G10: =SUM(G7:G9) -> 11,346.80 | I10: =SUM(I7:I9) -> 14,561,726.67 | K10: =SUM(K7:K9) -> 13,105,554.00
A11: 减：房屋建筑物减值准备
A12: 合 计 | I12: =I10-I11 -> 14,561,726.67 | K12: =K10-K11 -> 13,105,554.00
A13: 填报人：
A14: 填表日期：2021年01月08日

Sheet 土地
A1: 土地使用权评估明细表
A2: 评估基准日：2021年01月08日
K3: 1-2
A4: 被评估单位：盐城大丰天州机械制造有限公司 | K4: 金额单位：人民币元
A5: 序号 | B5: 土地出让合同编号 | C5: 土地位置 | D5: 取得日期 | E5: 用地性质 | F5: 使用权类型 | G5: 剩余使用年期 （终止日期） | H5: 面积(m2) | I5: 评估单价（元/m2) | J5: 评估价值 | K5: 备注
A6: 1 | B6: 3209822018CR0025 | C6: 盐城市大丰 区草庙居委会三、四组 | D6: 2018-03-13 | E6: 工业用地 | F6: 出让 | G6: 47.18 | H6: 20,200.00 | I6: 176.00 | J6: =H6*I6 -> 3,555,200.00
A8: 合 计 | J8: =SUM(J6:J7) -> 3,555,200.00

Sheet 收益法
A1: 房屋建筑物评估明细表
A2: 评估基准日：2021年01月08日
J3: 2-1
A4: 被评估单位：盐城大丰天州机械制造有限公司 | J4: 金额单位：人民币元
A5: 序号 | B5: 建筑物名称 | C5: 结构 | D5: 建成 年月 | E5: 层次/层数 | F5: 计量单位 | G5: 建筑面积（m2) | H5: 评估单价(元/m2) | I5: 评估价值 | J5: 备注
A7: 1 | B7: 1#厂房 | C7: 钢混 | D7: 2018 | E7: 1-1 | F7: m2 | G7: 3,893.40 | H7: 1465 | I7: =ROUND(H7*G7,2) -> 5,703,831.00 | J7: 局部二层
A8: 2 | B8: 2#厂房 | C8: 钢混 | D8: 2018 | E8: 1-1 | F8: m2 | G8: 3,893.40 | H8: 1465 | I8: 5,703,831.00 | J8: 局部二层
A9: 3 | B9: 3#厂房 | C9: 钢混 | D9: 2018 | E9: 1-1 | F9: m2 | G9: 3,560.00 | H9: 1465 | I9: 5,215,400.00 | J9: 局部二层
A10: 合 计 | G10: =SUM(G7:G9) -> 11,346.80 | I10: =SUM(I7:I9) -> 16,623,062.00
A11: 减：房屋建筑物减值准备
A12: 合 计 | I12: =I10-I11 -> 16,623,062.00
A13: 填报人：
A14: 填表日期：2021年01月08日
